Workbook

Sheet Blad1
J2: Conversion F to C | L2: 338 | M2: Fahrenheit
L3: =(L2-32)/9*5 -> 170 | M3: Celsius
B4: Buiten / outside
B5: p Buiten | C5: 1 | D5: Bara | I5: Stoom naar heater Steam to heater
B6: p Outside | C6: =C5 -> 1 | D6: Bara | I6: p | J6: 5 | K6: Bara | L6: Verz. Temp | M6: =Tsat_p(J6) -> 151.8362439
B7: t Buiten | C7: 21 | D7: oC | I7: t | J7: 180 | K7: oC | L7: Sat temp | M7: =Tsat_p(J6) -> 151.8362439
B8: t outside | C8: =C7 -> 21 | D8: oC | I8: h | J8: =h_pt(J6,J7) -> 2812.449972 | K8: kJ/kg | Q8: Condensor Condenser
I9: Mass/sec | J9: 6 | K9: kg/s | Q9: p | R9: 0.05 | S9: Bara
D10: Suppletie / Suppletion | J10: =J9*3.6 -> 21.6 | K10: T/h | Q10: t | R10: =Tsat_p(R9) -> 32.87548952 | S10: oC
D11: mass/s | E11: 2 | F11: kg/s | Q11: Mass/sec | R11: 33 | S11: kg/s
D12: t | E12: 20 | F12: oC
F14: mass/sec | G14: =R11+J9 -> 39 | H14: kg/s
F15: h | G15: =(J9*(J8-K21)+R11*O18)/(R11+J9) -> 450.7650449 | H15: kJ/kg
F16: t | G16: =G15/4.2 -> 107.3250107 | H16: oC
N18: h | O18: =hL_p(R9) -> 137.765119 | P18: kJ/kg
B21: Ontsnap stoom escape steam | K21: =hL_p(J6) -> 640.1853354 | L21: kJ/kg
B22: m = | C22: =C25*PI()/4*(C24*10^-3)^2*0.85*C26/C27 -> 0.1299395052 | D22: kg/s
B23: Q = | C23: =C22*(C28-C29)+C22*4.2*(H34-C7) -> 344.1195435 | D23: kW
B24: d = | C24: 10 | D24: mm
B25: Pijpen | C25: 2 | D25: Stuks
B26: v = | C26: =IF(SQRT(2*(H33-C5)*10^5*C27)>=450,450,SQRT(2*(H33-C5)*10^5*C27)) -> 450 | D26: m/s | M26: Stoom Steam supply
B27: SV = | C27: =vV_p(H33) -> 0.4623917832 | D27: m3/kg | M27: p | N27: 7 | O27: Bara
B28: h stoom | C28: =hV_p(H33) -> 2738.056623 | D28: kJ/kg | M28: t | N28: 180 | O28: oC
B29: h water | C29: =hL_p(H33) -> 604.7234742 | D29: kJ/kg | M29: h | N29: =h_pt(N27,N28) -> 2799.378064 | O29: kJ/kg
M30: Mass/sec | N30: =((G14+E11)*4.2*(H34-G55))/(N29-C29)+C22 -> 3.311415745 | O30: kg/s
N31: =N30*3.6 -> 11.92109668 | O31: T/h
G33: p | H33: 4 | I33: Bara
G34: t | H34: =Tsat_p(H33) -> 143.612533 | I34: oC
G35: h | H35: =hL_p(H33) -> 604.7234742 | I35: kJ/kg
G36: Mass/sec | H36: =E11+G14+N30-C22 -> 44.18147624 | I36: kg/s
G55: =(E11*E12+G14*G16)/(E11+G14) -> 103.0652541
